Cogmind - Beta 10.1 @@@ ROGUE MODE // 2020.10.25 @ 23:03:59 Player: W_W Result: Destroyed by as-87147 with Assembled Blade Performance ------------- Evolutions (0) 0 Regions Visited (2) 400 Robots Destroyed (37) 185 Value Destroyed (484) 484 Prototype IDs (4) 80 Alien Tech Used (0) 0 Bonus (0) 0 TOTAL SCORE: 1149 Bonus ------- None Cogmind --------- Core Integrity 0/250 Matter 218/300 Energy 160/160 System Corruption 2% Temperature Cool (120) Movement Treading (160) Location -10/Mines Parts ------- > --- POWER (1) -------- Light Nuclear Core > --- PROPULSION (2) --- Light Treads > --- UTILITY (2) ------ Small Storage Unit Small Storage Unit > --- WEAPON (2) ------- Light Cannon Light Cannon > --- INVENTORY (8) ---- High-capacity Matter Pod (200) Improved Sensor Array Medium Armor Plating Medium Armor Plating Bomb Drone Bay Light Cannon Mining Laser Peak State ------------ > --- POWER ------------ Light Nuclear Core > --- PROPULSION ------- Light Treads Light Treads > --- UTILITY ---------- Small Storage Unit Small Storage Unit > --- WEAPON ----------- Light Cannon Light Cannon > --- INVENTORY -------- High-capacity Matter Pod Improved Sensor Array Medium Armor Plating Medium Armor Plating Bomb Drone Bay Light Cannon Mining Laser [Rating: 11] Favorites ----------- Power Light Ion Engine Engine Light Ion Engine Power Core Light Nuclear Core Propulsion Light Treads Treads Light Treads Utility Small Storage Unit Storage Small Storage Unit Weapon Light Cannon Energy Gun EM Pulse Gun Ballistic Gun Assault Rifle Ballistic Cannon Light Cannon Build | -11 -10 -10 ------- Run | Scr Mat Min Slots Evolved . | . . . Power . | . . . Propulsion . | . . . Utility . | . . . Weapon . | . . . Parts Attached 25 | 8 14 3 Power 7 | 1 3 3 Engine 3 | 1 1 1 Core 4 | . 2 2 Reactor . | . . . Propulsion 4 | 2 2 . Treads 4 | 2 2 . Leg . | . . . Wheel . | . . . Hover . | . . . Flight . | . . . Utility 3 | 2 1 . Device . | . . . Storage 3 | 2 1 . Processor . | . . . Hackware . | . . . Protection . | . . . Artifact . | . . . Weapon 11 | 3 8 . Energy Gun 1 | 1 . . Energy Cannon . | . . . Ballistic Gun 4 | 2 2 . Ballistic Cannon 6 | . 6 . Launcher . | . . . Special Weapon . | . . . Impact Weapon . | . . . Slashing Weapon . | . . . Piercing Weapon . | . . . Special Melee Weapon . | . . . Unidentified Prototypes . | . . . Parts Lost 2 | . 1 1 Power . | . . . Propulsion 1 | . . 1 Utility . | . . . Weapon 1 | . 1 . Highest Loss Streak 1 | . 1 1 Average Slot Usage (%) 99 | . 99 100 Engine 7 | . 8 . Core 6 | . 5 14 Treads 27 | . 27 28 Storage 28 | . 28 28 Energy Gun 6 | . 7 . Ballistic Gun 10 | . 12 . Ballistic Cannon 10 | . 7 28 Naked Turns . | . . . Heaviest Build 19 | 15 19 19 Greatest Support 40 | 40 40 40 Greatest Overweight (x) 2 | 2 . . Average Overweight (x) . | . . . Largest Inventory Capacity 8 | 8 8 8 Average Capacity 7 | 7 8 8 Most Carried 8 | 6 8 8 Average Carried 7 | 4 7 7 Final Capacity 8 | 8 8 8 Final Carried 8 | 6 8 8 Class Distribution -------------------- 100% | Mutant Dominant Class ---------------- Mutant | -10/Materials Mutant | -10/Mines Resources | -11 -10 -10 ----------- Run | Scr Mat Min Matter Collected 923 | 364 559 . Remotely . | . . . Salvage Created 1175 | 339 830 6 Parts 95 | 42 52 1 Haulers Intercepted 1 | . 1 . Recyclers Shooed . | . . . Parts Field Recycled . | . . . Retrieved Matter . | . . . Parts Self-Destructed . | . . . Prevented . | . . . Kills | -11 -10 -10 ------- Run | Scr Mat Min Combat Hostiles Destroyed 13 | . 12 1 Guns 7 | . 7 . Cannons 6 | . 5 1 Classes Destroyed 9 | 3 5 1 Worker 4 | 4 . . Tunneler 10 | 9 . 1 Hauler 1 | . 1 . Recycler 6 | 1 5 . Operator 1 | . 1 . Watcher 2 | . 2 . Swarmer 5 | . 5 . Grunt 7 | . 7 . Assembled 1 | . . 1 Best Kill Streak 4 | 4 4 2 Combat Bots Only 3 | . 3 1 Max Kills in Single Turn 2 | 1 2 1 Gunslinging . | . . . Exploded . | . . . Melee . | . . . Uniques/NPCs Destroyed . | . . . Combat | -11 -10 -10 -------- Run | Scr Mat Min Damage Taken 975 | 24 573 378 Core 274 | . 166 108 Absorbed by Shields . | . . . Core Remaining (%) 100 | 100 . . Volleys Fired 89 | 28 57 4 Largest 2 | 2 2 2 Hottest 70 | 60 60 70 Shots Fired 177 | 56 113 8 Gun 150 | 56 94 . Cannon 27 | . 19 8 Launcher . | . . . Special . | . . . Kinetic 111 | 28 75 8 Thermal . | . . . Explosive . | . . . Electromagnetic 66 | 28 38 . Robot Hit Streak 8 | 7 8 2 Robot Miss Streak 7 | 3 6 7 Penetration Max . | . . . Secondary Targets 1 | . 1 . Max Gunslinging Chain 1 | . 1 . Shots Hit Robots 90 | 25 63 2 Core Hits 49 | 15 32 2 Critical Hits . | . . . Critical Kills . | . . . Critical Parts Destroyed . | . . . Melee Attacks . | . . . Impact . | . . . Slashing . | . . . Piercing . | . . . Sneak Attacks . | . . . Combat Hostiles . | . . . Follow-up Attacks . | . . . Damage Inflicted 1470 | 395 1013 62 Guns 1135 | 375 760 . Cannons 202 | . 145 57 Explosions 99 | 20 79 . Melee . | . . . Ramming 34 | . 29 5 Kinetic 734 | 160 517 57 Thermal 99 | 20 79 . Explosive . | . . . Electromagnetic 603 | 215 388 . Impact . | . . . Slashing . | . . . Piercing . | . . . Highest Corruption 2 | . . 2 Average Corruption 2 | . . 2 Corruption Purged . | . . . Overload Shots . | . . . Overflow Damage . | . . . Projectiles . | . . . Explosions . | . . . Melee . | . . . Knockbacks 1 | . 1 . Impact . | . . . Kinetic 1 | . 1 . Secondary . | . . . Self-Inflicted Damage 61 | 24 37 . Shots 2 | 1 1 . Rammed 12 | . 12 . Targets Rammed 13 | . 12 1 Kicked . | . . . Crushed 1 | . . 1 Highest Temperature 100 | 12 99 100 Average Temperature 29 | 12 31 35 Received Heat Transfer 351 | . 171 180 Siege Activations . | . . . Robots Corrupted . | . . . Combat Hostiles . | . . . Parts Fried 2 | 1 1 . Impact Corruptions . | . . . Robots Melted . | . . . Combat Hostiles . | . . . Parts Melted . | . . . Heat Transferred 100 | . 100 . Parts Sabotaged . | . . . Parts Stolen . | . . . Parts Stripped . | . . . Power Chain Reactions 2 | 1 1 . Missiles Intercepted . | . . . Alert | -11 -10 -10 ------- Run | Scr Mat Min Peak Influence 199 | 70 199 38 Initial 33 | . . 33 Average 64 | 39 76 33 Maximum Alert Level . | . . . Low Security (%) 100 | 100 100 100 Level 1 . | . . . Level 2 . | . . . Level 3 . | . . . Level 4 . | . . . Level 5 . | . . . High Security . | . . . Max Security . | . . . Squads Dispatched 1 | . 1 . Investigation . | . . . Extermination . | . . . Reinforcement 1 | . 1 . Assault . | . . . Garrison . | . . . Intercept . | . . . Construction Impeded . | . . . Haulers Reinforced . | . . . Stealth | -11 -10 -10 --------- Run | Scr Mat Min Distress Signals 3 | . 3 . Communications Jammed . | . . . Distress Signals . | . . . Times Spotted 42 | . 30 12 Peak Tracking Total 9 | . 3 9 Tactical Retreats 3 | . 2 1 Traps | -11 -10 -10 ------- Run | Scr Mat Min Traps Triggered 2 | . 2 . Indirectly . | . . . Trap Hack Attempts . | . . . Triggered . | . . . Disarmed . | . . . Reprogrammed . | . . . Reused . | . . . Traps Extracted . | . . . Installed . | . . . Triggered . | . . . Machines | -11 -10 -10 ---------- Run | Scr Mat Min Machines Disabled 1 | . 1 . Max in Single Turn 1 | . 1 . Machines Sabotaged . | . . . Garrisons Compromised . | . . . Overloaded Fab Kills . | . . . Fab Network Shutdowns . | . . . Hacking | -11 -10 -10 --------- Run | Scr Mat Min Machines Accessed 10 | . 9 1 Terminals 7 | . 7 . Fabricators . | . . . Repair Stations . | . . . Recycling Units 2 | . 2 . Scanalyzers . | . . . Garrison Access . | . . . Total Hacks 38 | . 37 1 Successful 23 | . 22 1 Failed 15 | . 15 . Catastrophic 2 | . 2 . Database Lockouts . | . . . Manual . | . . . Terminals 32 | . 32 . Fabricators . | . . . Repair Stations . | . . . Recycling Units 5 | . 5 . Scanalyzers . | . . . Garrison Access . | . . . Terminal Hacks 19 | . 18 1 Record 6 | . 6 . Prototype ID Bank 3 | . 3 . Open Door 1 | . . 1 Terminal Index 1 | . 1 . Alert Level 4 | . 4 . Locate Traps 1 | . 1 . Dispatch Records 2 | . 2 . Reinforcement Status 1 | . 1 . Fabricator Hacks . | . . . Repair Station Hacks . | . . . Recycling Unit Hacks 4 | . 4 . Process 1 | . 1 . Report Inventory 1 | . 1 . Retrieve Matter 2 | . 2 . Scanalyzer . | . . . Garrison Access Hacks . | . . . Unauthorized Hacks . | . . . Terminals . | . . . Fabricators . | . . . Repair Stations . | . . . Recycling Units . | . . . Scanalyzers . | . . . Garrison Access . | . . . Data Cores Recovered . | . . . Used . | . . . Hacking Detections 8 | . 8 . Full Trace Events 1 | . 1 . Feedback Events . | . . . Feedback Blocked . | . . . Robot Schematics Acquired . | . . . Robots Built . | . . . Matter . | . . . Time . | . . . Total Robot Build Rating . | . . . Part Schematics Acquired . | . . . Parts Built . | . . . Matter . | . . . Time . | . . . Total Part Build Rating . | . . . Parts Repaired . | . . . Time . | . . . Parts Recycled . | . . . Recycled Matter 338 | . 338 . Retrieved Matter 395 | . 395 . Retrieved Components . | . . . Parts Scanalyzed . | . . . Part Schematics Acquired . | . . . Parts Damaged . | . . . Bothacking | -11 -10 -10 ------------ Run | Scr Mat Min Used RIF Installer . | . . . Robots Hacked . | . . . Non-combat . | . . . Combat . | . . . Robot Hacks Applied . | . . . Relay Couplers Released . | . . . Robots Rewired . | . . . Allies Hacked . | . . . Hacks Repelled . | . . . Allies | -11 -10 -10 -------- Run | Scr Mat Min Total Allies . | . . . Largest Group . | . . . Highest-Rated Group . | . . . Highest-Rated Ally . | . . . Total Orders . | . . . Ally Attacks . | . . . Total Damage . | . . . Kills . | . . . Allies Corrupted . | . . . Allies Melted . | . . . Intel | -11 -10 -10 ------- Run | Scr Mat Min Robot Analysis Total . | . . . Derelict Logs Recovered . | . . . Drone Launches . | . . . Drone Recoveries . | . . . Exploration | -11 -10 -10 ------------- Run | Scr Mat Min Turns Passed 2081 | 402 1425 254 Spaces Moved 1050 | 193 711 146 Core 14 | 14 . . Treads 1036 | 179 711 146 Legs . | . . . Wheels . | . . . Hover . | . . . Flight . | . . . Fastest Speed 50 | 50 160 160 Average Speed 159 | 156 160 160 Slowest Speed 160 | 160 160 160 Overloaded Moves . | . . . Propulsion Burnouts . | . . . Robots Hopped . | . . . Cave-ins Triggered . | . . . Exploration Rate (%) 48 | 7 98 40 Regions Visited 2 Branch Regions 1 Pre-discovered Areas . | . . . Known Exits Taken . | . . . Unknown Exits Taken 2 | 1 1 . Scrap Searched . | . . . Spaces Dug . | . . . Terrain Destroyed 3 | . 3 . Melee . | . . . Projectile . | . . . AOE 3 | . 3 . Terrain Rammed . | . . . Walls Destroyed . | . . . Machines Disabled . | . . . Actions | -11 -10 -10 --------- Run | Scr Mat Min Total 1277 | 234 884 159 Wait 64 | 1 62 1 Move 1048 | 192 710 146 Hop . | . . . Pick Up 19 | 5 13 1 Fast Attach 16 | 7 9 . Attach 1 | . 1 . Detach . | . . . Swap 8 | 1 4 3 Drop 19 | . 16 3 Fire 89 | 28 57 4 Melee . | . . . Ram . | . . . Kick . | . . . Crush 13 | . 12 1 Escape Stasis . | . . . Rewire . | . . . Trap . | . . . Miscellaneous . | . . . Route ------- -11/Scrapyard -10/Materials (discovered 5 exits: [*Mat x3] / *Min x2) -10/Mines History --------- Turn | Location | Event 17 | -11/Scrapyard | Discovered new exit (range 15) 403 | -11/Scrapyard | Entered Materials 404 | -10/Materials | Build established: Mutant 807 | -10/Materials | Discovered new exit (range 15) 985 | -10/Materials | Discovered new exit (range 9) 1323 | -10/Materials | Discovered new exit (range 16) 1460 | -10/Materials | Discovered new exit (range 16) 1536 | -10/Materials | Core integrity fell below 50% 1633 | -10/Materials | Discovered new exit (range 16) 1828 | -10/Materials | Entered Mines 1940 | -10/Mines | Found the Drone Emporium 1950 | -10/Mines | Found Prototype Device 2015 | -10/Mines | Found a hidden stash of uninstalled traps 2034 | -10/Mines | Assembled infested the area 2081 | -10/Mines | Core integrity fell below 20% 2082 | -10/Mines | Destroyed by as-87147 with Assembled Blade Last Messages --------------- 01940_ LK-XNS(g): "Well that was anticlimactic. Heard you outside and thought you were from the Merchants Guild. I haven't even officially opened my Drone Emporium yet but am totally ready to tell them where they can shove that C&D." 01942_ LK-XNS(g): "I'm a fan of the free market. Free drones for all! No strings attached!" 01949_ Dropped Ion Engine. 01950_ Dropped Lgt. Nuclear Core. 01950_ Acquired Prototype Device. 01953_ Dropped Lgt. Nuclear Core. 02015_ A stash of uninstalled traps is collected here! 02034_ ALERT: Infestation in the mines, dispatching Demolisher response squad. 02052_ as-48621 destroyed. 02058_ Crushed T-07 Excavator. 02058_ T-07 Excavator destroyed. 02080_ Lgt. Treads destroyed. 02080_ System corrupted by crushing effect (+2). 02081_ as-42569 destroyed. [Achievement: Back For More] Map ----- +----------------------------------------------------+ | ?????????????????????????????????????????????????? | | ?????????????????????????????????????????????????? | | ?????????????????????????????????????????????????? | | ?????????????????????????????????????????????????? | | ?????????????????????????????????????????????????? | | ?????????????????????????????????????????????????? | | ?????????????????????????????????????????????????? | | ?????????????????????????????????????????????????? | | ?????????????????????????????????????????????????? | | ?????????????????????????????????????????????????? | | ???????????????????????? ?????????????????????? | | ???????????????????????? ????????????????????? | | ???????????????????????? t ????????????????????? | | ???????????????????????? ????????????????????? | | ???????????????????????? ????????????????????? | | ???????????????????????? ????????????????????? | | ???????????????????????? ?????????????????????? | | #??????????????????????? ?????????????????????? | | ??????????????????????? #?????????????????????? | | #??????????????????????? ##????????????????????? | | #????######????????????? #????????????????????? | | #???##""""##????????????# ##???????????????????? | | #???#" * "#????????????# ##??????????????????? | | #####" * "#?????###???## #??????????????????? | | ### ##????## ####a #??????????????????? | | ## #### ## #???# a@ #???????????????????? | | ## ## X #???# aa % ##???????????????????? | | ## #???## a a #????????????????????? | | ?# ## #????#### a #????????????????????? | | ?# ## #???????# ## ##????????????????????? | | ?# ## #???????# ######?????????????????????? | | ?# ##########???????# #####???????#??????????????? | | ?# #????????????????# = #?????? ???????????????? | | ?# ###########??????##### #??### ????????????????? | | ?# #??????????# #? ?????????????????? | | ?########### #??????????# #? #??????????????????? | | ???????????# #??????????# ## #??????????????????? | | #??????????# #??????????#% #??????????????????? | | ##?????????# #??????????# #??????????????????? | | #?????????# #??????????# ####??????????????????? | | #???????### #??#####???# #?????????????????????? | | #???????# #### ##### #?????????????????????? | | #???????# ## #?????????????????????? | | ##??????# #?????????????????????? | | #?????## #?????????????????????? | | #????## ##?????????????????????? | | ##????# ##??????????????????????? | | #?????# ### ##???????????????????????? | | #?????# ##?#####????????????????????????? | | #?????# ####???????????????????????????????? | +----------------------------------------------------+ Best States ------------- Heat Dissipation 25 Energy Generation 14 Energy Capacity 160 Matter Stores 300 Matter Capacity 300 Sight Range 16 Terrain Scan Density 10 Evasion (%) 40 Recoil Reduction 2 Item Schematics ----------------- None Robot Schematics ------------------ None Fabricated ------------ Nothing Alien Tech Used ----------------- None Achievements -------------- Back For More Challenges ------------ None Game ------ Seed HardenedRiotTorch Manual? 0 Play Time 00:17:50 Cumulative 49.4 hours Start 2020.10.25 @ 21:59:14 End 2020.10.25 @ 23:03:59 Sessions 3 Manual Loads 0 Difficulty Rogue Special Mode None Game No. 50 Rogue 50 Adventurer 0 Explorer 0 Win Type - Total 0 Types 0/0/0/0/0/0/0/0/0 Lore% 27 Gallery% 28 Achievement% 24 Wizard Run 0 Options --------- ASCII 0 Keyboard 0 Movement Mouse Keybinds 0 Fullscreen 1 Font 18/SmallcapsGlow Map View 76x50 Tactical HUD 1 Map Filters NONE Filters NONE Steam 1 RUN: 9ff4f191-57bc-4d6b-bc6e-2611dfe11554